bitfinex/quotes_SOLUSD_20260310
["timestamp","ask_amount","ask_price","bid_price","bid_amount"]
[1773159620769,11.32002852,88.339,88.304,0.4719081]
[1773159620968,11.31887535,88.348,88.304,0.4719081]
[1773159621168,0.1713758,88.369,88.306,0.4719081]
[1773159621360,10.5451228,88.36,88.308,0.4719081]
[1773159621560,0.1713758,88.358,88.31,0.4719081]
[1773159622678,11.31746624,88.359,88.31,0.4719081]
[1773159623278,0.1713758,88.358,88.312,0.4719081]
[1773159623582,0.1713758,88.349,88.312,0.4719081]
[1773159623774,0.1713758,88.347,88.309,11.32387412]
[1773159624469,0.1713758,88.339,88.295,11.32556066]
[1773159624679,10.5451228,88.33,88.296,0.4719081]
[1773159624882,0.1713758,88.339,88.296,0.4719081]
[1773159627485,10.5451228,88.3,88.268,11.8010421]
[1773159627668,0.1713758,88.309,88.269,0.4719081]
[1773159628363,39.63400823,88.308,88.27,11.3288773]
[1773159628565,10.5451228,88.3,88.27,11.3288773]
[1773159628861,39.80538403,88.308,88.271,0.4719081]
[1773159629466,10.5451228,88.3,88.271,0.4719081]
[1773159630166,39.80538403,88.308,88.271,0.4719081]
[1773159630362,11.49435238,88.316,88.273,0.4719081]
[1773159630562,11.32297658,88.316,88.273,0.4719081]
[1773159630766,11.32297658,88.316,88.272,39.65017218]
[1773159630767,0.1713758,88.309,88.272,11.32862062]
[1773159630968,0.1713758,88.309,88.273,0.4719081]
[1773159632182,10.5451228,88.31,88.273,0.4719081]
[1773159632567,39.63041804,88.316,88.275,0.4719081]
[1773159632780,11.32297658,88.316,88.275,0.4719081]
[1773159632976,11.32297658,88.316,88.274,39.64927384]
[1773159632977,11.32130619,88.33,88.277,0.4719081]
[1773159633174,0.1713758,88.348,88.279,0.4719081]
[1773159633379,0.1713758,88.348,88.281,0.4719081]
[1773159633581,0.1713758,88.348,88.283,0.4719081]
[1773159633880,0.1713758,88.348,88.285,0.4719081]
[1773159634082,0.1713758,88.348,88.287,0.4719081]
[1773159634271,0.1713758,88.348,88.289,0.4719081]
[1773159634479,10.7164986,88.34,88.291,0.4719081]
[1773159634785,11.32002852,88.339,88.293,0.4719081]
[1773159635282,0.1713758,88.338,88.293,0.4719081]
[1773159636282,0.1713758,88.319,88.281,0.4719081]
[1773159636672,0.1713758,88.319,88.256,33.98470688]
[1773159636673,0.1713758,88.299,88.265,11.32951906]
[1773159636872,0.1713758,88.299,88.266,0.4719081]
[1773159637188,10.5451228,88.3,88.266,0.4719081]
[1773159638569,0.1713758,88.299,88.266,0.4719081]
[1773159639291,0.1713758,88.297,88.26,11.33009326]
[1773159639596,0.1713758,88.297,88.261,0.4719081]
[1773159640580,10.5451228,88.29,88.261,0.4719081]
[1773159640784,10.5451228,88.29,88.257,11.33042001]
[1773159641478,10.5451228,88.29,88.258,0.4719081]
[1773159642081,10.7164986,88.28,88.249,0.4719081]
[1773159642500,0.1713758,88.289,88.251,0.4719081]
[1773159642983,10.5451228,88.28,88.252,11.80309606]
[1773159643174,10.5451228,88.28,88.253,0.4719081]
[1773159643612,0.1713758,88.279,88.249,0.4719081]
[1773159643796,0.1713758,88.279,88.241,0.4719081]
[1773159644179,0.1713758,88.279,88.244,0.4719081]
[1773159644689,10.5451228,88.27,88.244,0.4719081]
[1773159645002,0.1713758,88.279,88.244,0.4719081]
[1773159645003,11.32836748,88.274,88.244,0.4719081]
[1773159645795,11.32836748,88.274,88.24,0.2]
[1773159645985,10.5451228,88.27,88.241,0.4719081]
[1773159646192,11.32836748,88.274,88.241,0.4719081]
[1773159646393,11.32836748,88.274,88.242,0.4719081]
[1773159646777,11.32720908,88.283,88.242,0.4719081]
[1773159647000,11.49922645,88.278,88.244,0.47881559]
[1773159647385,11.32785065,88.278,88.244,0.47881559]
[1773159649701,11.32785065,88.278,88.245,11.3320868]
[1773159650001,11.32785065,88.278,88.246,0.45234784]
[1773159650295,104.3,88.308,88.246,0.45234784]
[1773159650296,10.5451228,88.3,88.246,0.45234784]
[1773159650500,11.3247718,88.302,88.248,0.45234784]
[1773159650698,0.1713758,88.289,88.245,39.6623038]
[1773159650898,10.5451228,88.28,88.246,0.45234784]
[1773159651778,11.32772233,88.279,88.248,0.45234784]
[1773159654708,11.32772233,88.279,88.25,0.45234784]
[1773159657211,11.32772233,88.279,88.251,11.33131635]
[1773159657408,0.1713758,88.302,88.252,0.45234784]
[1773159657708,10.5451228,88.29,88.252,0.45234784]
[1773159658213,11.32490005,88.301,88.254,0.45234784]
[1773159659312,10.5451228,88.3,88.256,0.45234784]
[1773159660010,11.32387412,88.309,88.258,0.45234784]
[1773159660206,0.1713758,88.308,88.258,0.45234784]
[1773159660713,11.32339885,88.313,88.26,0.45234784]
[1773159660914,11.32339885,88.313,88.262,0.45234784]
[1773159661515,11.32339885,88.313,88.264,0.45234784]
[1773159662207,11.32339885,88.313,88.266,0.45234784]
[1773159662403,0.1713758,88.334,88.267,0.45234784]
[1773159662996,0.1713758,88.334,88.263,84.97331836]
[1773159662997,10.5451228,88.35,88.274,0.45234784]
[1773159663207,22.03383676,88.36,88.285,0.45234784]
[1773159663517,0.1713758,88.359,88.287,0.45234784]
[1773159665116,0.1713758,88.377,88.294,0.45234784]
[1773159665309,0.1713758,88.377,88.305,0.45234784]
[1773159665514,39.60261603,88.378,88.305,0.45234784]
[1773159665515,0.1713758,88.359,88.305,0.45234784]
[1773159665712,0.1713758,88.339,88.289,0.45234784]
[1773159666416,11.31234516,88.399,88.292,0.45234784]
[1773159666614,10.5451228,88.39,88.308,0.45234784]
[1773159666819,0.1713758,88.379,88.315,0.45234784]
[1773159667125,11.31503315,88.378,88.316,39.63041804]
[1773159667414,11.31503315,88.378,88.317,0.45234784]
[1773159667611,0.1713758,88.388,88.318,4.82477569]
[1773159667816,0.1713758,88.388,88.316,84.92232437]
[1773159667817,0.1713758,88.429,88.339,0.45234784]
[1773159668017,0.1713758,88.409,88.322,3.69383402]
[1773159668317,0.1713758,88.409,88.345,0.45234784]
[1773159668496,0.1713758,88.399,88.345,0.45234784]
[1773159668698,0.1713758,88.424,88.355,0.45234784]
[1773159669297,39.58022345,88.428,88.36,0.45234784]
[1773159669298,0.1713758,88.419,88.36,0.45234784]
[1773159670802,0.1713758,88.419,88.359,3.69383402]
[1773159670803,0.1713758,88.439,88.367,0.45234784]
[1773159671121,0.1713758,88.447,88.376,0.45234784]
[1773159671303,11.4777096,88.446,88.378,0.45234784]
[1773159671508,11.3063338,88.446,88.382,0.45234784]
[1773159671701,11.30480001,88.458,88.387,0.45234784]
[1773159671899,6.97157666,88.459,88.387,0.45234784]
[1773159671900,6.97157666,88.459,88.399,0.45234784]
[1773159672210,0.1,88.46,88.409,4.82477569]
[1773159672412,0.1,88.46,88.412,0.45234784]
[1773159672808,28.2536934,88.485,88.407,3.69383402]
[1773159672809,0.2713758,88.509,88.413,0.45234784]
[1773159673008,0.2713758,88.509,88.38,6.64266371]
[1773159673009,0.2713758,88.549,88.43,0.45234784]
[1773159673203,0.2713758,88.526,88.449,0.45234784]
[1773159673403,0.2713758,88.523,88.469,0.45234784]
[1773159673603,28.2355025,88.542,88.469,0.45234784]
[1773159673805,11.29414797,88.542,88.469,0.45234784]
[1773159674000,1e-08,88.524,88.476,0.45234784]
[1773159674524,11.29649921,88.523,88.476,0.45234784]
[1773159674706,0.2713758,88.522,88.476,0.45234784]
[1773159675313,0.2713758,88.519,88.453,0.45234784]
[1773159675524,0.2713758,88.509,88.453,0.45234784]
[1773159675719,0.2713758,88.489,88.417,0.45234784]
[1773159676410,0.2713758,88.479,88.417,0.45234784]
[1773159676604,39.81001634,88.521,88.418,4.82477569]
[1773159676811,0.2713758,88.499,88.425,0.45234784]
[1773159677229,10.81023595,88.49,88.425,0.45234784]
[1773159677424,0.2713758,88.479,88.43,0.45234784]
[1773159678016,0.2713758,88.469,88.42,11.30961567]
[1773159678214,10.53886015,88.45,88.417,0.45234784]
[1773159678615,10.53886015,88.44,88.405,0.45234784]
[1773159679137,0.2713758,88.449,88.405,0.45234784]
[1773159679632,0.2713758,88.447,88.405,0.45234784]
[1773159680429,0.2713758,88.447,88.406,0.49055726]
[1773159680608,10.53886015,88.44,88.406,0.49055726]
[1773159680815,0.2713758,88.439,88.394,0.49055726]
[1773159681232,0.2713758,88.429,88.379,0.49055726]
[1773159681426,0.2713758,88.427,88.381,0.49055726]
[1773159681615,11.30863527,88.428,88.382,0.49055726]
[1773159681815,11.30722871,88.439,88.384,0.49055726]
[1773159682132,11.30722871,88.439,88.383,1.1314393]
[1773159682133,28.26057146,88.463,88.386,0.49055726]
[1773159682333,0.2713758,88.486,88.394,4.82477569]
[1773159682513,10.53886015,88.5,88.419,0.49055726]
[1773159682716,0.2713758,88.489,88.421,0.49055726]
[1773159682923,10.53886015,88.49,88.423,0.49055726]
[1773159683234,10.53886015,88.49,88.425,0.49055726]
[1773159683442,0.2713758,88.488,88.429,0.49055726]
[1773159683628,0.2713758,88.469,88.431,0.49055726]
[1773159683938,10.53886015,88.47,88.41,0.49055726]
[1773159684232,0.2713758,88.479,88.412,0.49055726]
[1773159684433,10.53886015,88.47,88.414,0.49055726]
[1773159684617,10.53886015,88.47,88.416,0.49055726]
[1773159684821,0.2713758,88.449,88.407,0.49055726]
[1773159685024,10.53886015,88.44,88.407,0.49055726]
[1773159685615,11.30722871,88.439,88.407,0.49055726]
[1773159685921,11.30722871,88.439,88.384,1.1314265]
[1773159685922,0.2713758,88.438,88.395,0.49055726]
[1773159686128,11.30722871,88.439,88.395,0.49055726]
[1773159686328,11.30722871,88.439,88.396,0.49055726]
[1773159687040,39.57530048,88.439,88.396,0.49055726]
[1773159687534,11.30467222,88.459,88.398,0.49055726]
[1773159687716,11.30467222,88.459,88.401,0.49055726]
[1773159688037,11.30467222,88.459,88.4,39.59276017]
[1773159688038,11.30467222,88.459,88.403,0.49055726]
[1773159688337,39.56635277,88.459,88.405,0.49055726]
[1773159688540,39.56635277,88.459,88.407,0.49055726]
[1773159688737,0.2713758,88.458,88.4,39.59276017]
[1773159688922,10.53886015,88.44,88.4,11.80277445]
[1773159689228,10.53886015,88.43,88.395,11.31285165]
[1773159689427,0.2713758,88.439,88.395,11.31285165]
[1773159689629,11.30850739,88.429,88.395,0.49055726]
[1773159689838,11.30790338,88.434,88.395,0.49055726]
[1773159690430,11.57927918,88.434,88.395,0.49055726]
[1773159690627,11.57927918,88.434,88.366,1.13165697]
[1773159690628,0.2713758,88.429,88.384,0.49055726]
[1773159690829,10.53886015,88.41,88.367,0.49055726]
[1773159691039,10.81023595,88.41,88.367,0.49055726]
[1773159691242,10.81023595,88.4,88.356,0.49055726]
[1773159691643,220.49345302,88.438,88.358,40.10213742]
[1773159691644,11.31106561,88.409,88.358,40.10213742]
[1773159691942,11.3103859,88.415,88.36,0.49055726]
[1773159692118,11.3103859,88.415,88.362,0.49055726]
[1773159692322,0.2713758,88.399,88.358,11.31759433]
[1773159692519,0.2713758,88.399,88.358,11.80815159]
[1773159692938,10.53886015,88.41,88.359,0.49055726]
[1773159693130,11.3103859,88.415,88.361,0.49055726]
[1773159693442,0.2713758,88.414,88.362,1.1317082]
[1773159693741,11.31234516,88.399,88.361,0.49055726]
[1773159695139,11.31169962,88.405,88.361,0.49055726]
[1773159695431,10.53886015,88.4,88.361,0.49055726]
[1773159695823,28.27798389,88.408,88.344,1.13193878]
[1773159695824,10.53886015,88.41,88.363,0.49055726]
[1773159696023,11.31169095,88.405,88.363,0.49055726]
[1773159697943,11.31169095,88.405,88.334,45.28220604]
[1773159697944,0.2713758,88.399,88.35,0.49055726]
[1773159698250,0.2713758,88.399,88.351,0.49055726]
[1773159698428,10.53886015,88.39,88.351,0.49055726]
[1773159698637,0.2713758,88.399,88.351,0.49055726]
[1773159700053,0.2713758,88.379,88.341,11.31977224]
[1773159700351,10.53886015,88.37,88.341,11.31977224]
[1773159700650,10.53886015,88.37,88.33,28.30291147]
[1773159700651,0.2713758,88.369,88.33,11.32113948]
[1773159701031,0.2713758,88.369,88.331,0.49055726]
[1773159701231,10.53886015,88.37,88.331,0.49055726]
[1773159701454,10.81023595,88.38,88.331,0.49055726]
[1773159701831,6.99883852,88.444,88.33,39.6240943]
[1773159701832,0.2713758,88.409,88.334,0.49055726]
[1773159702052,10.53886015,88.42,88.341,0.49055726]
[1773159702256,0.2713758,88.409,88.343,0.49055726]
[1773159702432,0.2713758,88.409,88.345,0.49055726]
[1773159702753,0.2713758,88.409,88.347,0.49055726]
[1773159702935,0.2713758,88.419,88.349,0.49055726]
[1773159703250,0.2713758,88.439,88.351,0.49055726]
[1773159703546,0.2713758,88.439,88.356,0.49055726]
[1773159703734,0.2713758,88.439,88.358,0.49055726]
[1773159703937,0.2713758,88.439,88.36,0.49055726]
[1773159704244,39.57574797,88.438,88.366,0.49055726]
[1773159704547,0.2713758,88.429,88.368,0.49055726]
[1773159704747,0.2713758,88.429,88.367,1.13164416]
[1773159704748,0.2713758,88.429,88.37,0.49055726]
[1773159704949,0.2713758,88.429,88.372,0.49055726]
[1773159705154,0.2713758,88.419,88.374,0.49055726]
[1773159705335,10.53886015,88.41,88.374,0.49055726]
[1773159705535,0.2713758,88.419,88.374,0.49055726]
[1773159705750,10.81023595,88.43,88.374,0.49055726]
[1773159706051,11.30735656,88.438,88.378,0.49055726]
[1773159706346,11.30735656,88.438,88.38,0.49055726]
[1773159706548,10.53886015,88.43,88.382,0.49055726]
[1773159706755,0.2713758,88.429,88.382,0.49055726]
[1773159707157,10.53886015,88.41,88.377,11.31516118]
[1773159707357,0.2713758,88.41,88.377,11.31516118]
[1773159707653,0.2713758,88.409,88.37,11.31594725]
[1773159708155,0.2713758,88.407,88.363,0.46089522]
[1773159708361,11.31119355,88.408,88.363,0.46089522]
[1773159709040,0.2713758,88.407,88.363,0.46089522]
[1773159709455,11.31119355,88.408,88.363,0.46089522]
[1773159710055,104.3,88.437,88.343,1.13195159]
[1773159710056,11.3101701,88.416,88.365,0.46530841]
[1773159710245,11.3101701,88.416,88.367,0.46530841]
[1773159710741,0.2713758,88.419,88.369,0.46530841]
[1773159711353,0.2713758,88.419,88.364,39.60889049]
[1773159711354,0.2713758,88.399,88.358,11.78289199]
[1773159711647,0.2713758,88.399,88.359,0.46530841]
[1773159711852,10.53886015,88.41,88.359,0.46530841]
[1773159712032,45.23358546,88.43,88.359,0.46530841]
[1773159712033,39.58425224,88.419,88.361,0.46530841]
[1773159712233,0.2713758,88.409,88.361,0.46530841]
[1773159712456,0.2713758,88.399,88.36,11.31733816]
[1773159713036,0.2713758,88.389,88.36,11.31733816]
[1773159713351,0.2713758,88.389,88.341,0.46530841]
[1773159713854,10.53886015,88.38,88.341,0.46530841]
[1773159714239,11.31490512,88.379,88.342,11.31964411]
[1773159715150,0.2713758,88.378,88.342,11.31964411]
[1773159715658,10.53886015,88.36,88.321,11.32233557]
[1773159715841,10.53886015,88.36,88.321,11.78764398]
[1773159716042,0.2713758,88.369,88.322,0.46530841]
[1773159716237,0.2713758,88.369,88.32,0.2]
[1773159716238,11.58768939,88.368,88.324,0.46530841]
[1773159716554,0.2713758,88.359,88.324,0.46530841]
[1773159716746,0.2713758,88.359,88.32,0.2]
[1773159716949,0.2713758,88.359,88.321,11.32233557]
[1773159717260,0.2713758,88.349,88.32,0.2]
[1773159718338,11.31887535,88.348,88.32,0.2]
[1773159718837,10.53886015,88.34,88.32,0.2]
[1773159719136,0.0713758,88.339,88.298,0.46530841]
[1773159720154,39.61606374,88.348,88.298,0.46530841]
[1773159720453,10.53886015,88.34,88.3,0.46530841]
[1773159720852,0.0713758,88.339,88.3,0.46530841]
[1773159721052,39.61606374,88.348,88.28,0.46530841]
[1773159721053,10.53886015,88.32,88.28,0.46530841]
[1773159721359,10.61023595,88.32,88.28,0.46530841]
[1773159721746,10.53886015,88.33,88.28,0.46530841]
[1773159722057,45.26704818,88.365,88.278,39.64747728]
[1773159722058,11.38897013,88.358,88.282,0.46530841]
[1773159722265,50.06950969,88.409,88.289,8.51860971]
[1773159722266,10.53886015,88.37,88.289,8.51860971]
[1773159722438,10.53886015,88.37,88.293,0.46530841]
[1773159722644,10.53886015,88.37,88.295,0.46530841]
[1773159722848,10.53886015,88.36,88.297,0.46530841]
[1773159723150,0.0713758,88.369,88.288,3.69383402]
[1773159723151,0.0713758,88.369,88.299,0.46530841]
[1773159723348,10.53886015,88.37,88.301,0.46530841]
[1773159723551,10.53886015,88.37,88.303,0.46530841]
[1773159723753,10.53886015,88.37,88.305,0.46530841]
[1773159724039,10.53886015,88.37,88.307,0.46530841]
[1773159724357,10.53886015,88.37,88.309,0.46530841]
[1773159724561,0.0713758,88.394,88.314,0.46530841]
[1773159724760,45.22891484,88.439,88.321,0.46530841]
[1773159724761,11.31170535,88.404,88.321,0.46530841]
[1773159724962,11.31170535,88.404,88.323,0.46530841]
[1773159725148,10.53886015,88.4,88.325,0.46530841]
[1773159725347,11.31170535,88.404,88.327,0.46530841]
[1773159725663,45.22891484,88.439,88.32,3.69383402]
[1773159725664,10.53886015,88.42,88.343,0.46530841]
[1773159725967,39.65315186,88.425,88.343,0.46530841]
[1773159726143,10.53886015,88.43,88.349,0.46530841]
[1773159726144,0.0713758,88.424,88.349,0.46530841]
[1773159726346,21.84728529,88.43,88.362,0.46530841]
[1773159726547,0.0713758,88.447,88.367,0.46530841]
[1773159727045,0.0713758,88.46,88.381,0.46530841]
[1773159727252,0.0713758,88.459,88.381,0.46530841]
[1773159727658,0.0713758,88.439,88.381,0.46530841]
[1773159728050,10.52141956,88.45,88.381,0.46530841]
[1773159728452,10.52141956,88.45,88.383,0.46530841]
[1773159728453,11.30595032,88.449,88.383,0.46530841]
[1773159728757,39.57082612,88.449,88.383,0.46530841]
[1773159728947,11.30595032,88.449,88.383,0.46530841]
[1773159729342,39.57082612,88.449,88.41,10.52370114]
[1773159729548,0.0713758,88.419,88.38,10.52370114]
[1773159729767,10.52370114,88.41,88.38,10.52370114]
[1773159729942,10.59507694,88.4,88.37,10.52370114]
[1773159730348,0.0713758,88.4,88.37,10.52370114]
[1773159730553,11.31106561,88.409,88.38,10.52370114]
[1773159730758,11.31106561,88.409,88.372,0.46530841]
[1773159731164,11.31106561,88.409,88.38,10.52370114]
[1773159731347,3.69383402,88.437,88.372,0.46530841]
[1773159731348,10.59507694,88.42,88.372,0.46530841]
[1773159731548,10.59507694,88.42,88.38,10.52370114]
[1773159731851,10.52370114,88.41,88.38,10.52370114]
[1773159732051,10.52370114,88.42,88.38,10.52370114]
[1773159732271,11.30543904,88.453,88.411,0.46530841]
[1773159732452,11.30543904,88.453,88.42,10.52370114]
[1773159732653,0.0713758,88.458,88.42,10.52370114]
[1773159732853,10.52370114,88.45,88.42,10.52370114]
[1773159733056,11.30467222,88.459,88.43,10.52370114]
[1773159733454,11.3033944,88.469,88.431,0.46530841]
[1773159734266,11.3033944,88.469,88.44,10.52370114]
[1773159734470,11.30261513,88.476,88.45,10.52370114]
[1773159734671,11.30261513,88.476,88.358,0.5]
[1773159734965,3.69383402,88.473,88.401,0.5]
[1773159735172,3.69383402,88.473,88.359,130.15086181]
[1773159735173,10.52370114,88.45,88.42,10.52370114]
[1773159735555,10.52370114,88.45,88.411,0.5]
[1773159735869,10.52370114,88.44,88.411,0.5]
[1773159736071,10.52370114,88.45,88.411,0.5]
[1773159736371,10.52370114,88.43,88.382,0.5]
[1773159736568,10.52370114,88.43,88.391,0.5]
[1773159736761,39.57977586,88.429,88.391,0.5]
[1773159737073,39.57977586,88.429,88.365,1.13166977]
[1773159737074,10.52370114,88.42,88.38,11.02370114]
[1773159737380,10.52370114,88.41,88.37,10.52370114]
[1773159737854,10.52370114,88.42,88.39,10.52370114]
[1773159738050,39.57977586,88.429,88.348,45.2754845]
[1773159738051,10.52370114,88.41,88.37,10.52370114]
[1773159738253,10.52370114,88.4,88.361,0.5]
[1773159738858,39.59320806,88.399,88.361,0.5]
[1773159739273,11.31234516,88.399,88.37,10.52370114]
[1773159739477,11.31234516,88.399,88.371,0.5]
[1773159739674,28.27730188,88.411,88.38,10.52370114]
[1773159739675,21.83463881,88.41,88.38,10.52370114]
[1773159739864,11.31030497,88.415,88.381,0.5]
[1773159740063,11.30978635,88.419,88.39,10.52370114]
[1773159740257,11.30850739,88.429,88.391,0.5]
[1773159740568,11.30850739,88.429,88.401,0.5]
[1773159741155,11.30722871,88.439,88.41,10.52370114]
[1773159741478,11.30645851,88.446,88.421,0.5]
[1773159741675,11.30645851,88.446,88.41,10.52370114]
[1773159742075,10.52370114,88.44,88.41,10.52370114]
[1773159742257,11.30645851,88.446,88.41,10.52370114]
[1773159742458,11.30645851,88.446,88.421,0.5]
[1773159742965,10.52370114,88.44,88.409,0.5]
[1773159743369,10.52370114,88.43,88.409,0.5]
[1773159743861,39.57530048,88.439,88.409,0.5]
[1773159744067,39.57530048,88.439,88.363,4.82477569]
[1773159744068,10.52370114,88.42,88.366,0.5]
[1773159744267,10.52370114,88.4,88.371,0.5]
[1773159744576,10.52370114,88.4,88.338,1.13201566]
[1773159744577,10.52370114,88.39,88.358,0.5]
[1773159744759,10.52370114,88.39,88.36,0.5]
[1773159745354,10.52370114,88.38,88.351,0.5]
[1773159745559,10.52370114,88.39,88.351,0.5]
[1773159745755,10.52370114,88.38,88.351,0.5]
[1773159745962,10.52370114,88.39,88.351,0.5]
[1773159746782,10.52370114,88.4,88.361,0.5]
[1773159747072,231.8060518,88.436,88.341,96.21806408]
[1773159747073,10.52370114,88.41,88.381,0.5]
[1773159747374,11.30978635,88.419,88.383,0.5]
[1773159747557,10.52370114,88.41,88.383,0.5]
[1773159747960,11.30978635,88.419,88.383,0.5]
[1773159747961,10.52370114,88.4,88.383,0.5]
[1773159748160,10.52370114,88.41,88.383,0.5]
[1773159749060,10.52370114,88.41,88.37,1.13160574]
[1773159749061,10.52370114,88.4,88.372,0.5]
[1773159749678,10.52370114,88.41,88.374,0.5]
[1773159750469,10.52370114,88.4,88.374,0.5]
[1773159751177,10.52370114,88.41,88.374,0.5]
[1773159751557,10.52370114,88.41,88.373,11.31567333]
[1773159751558,10.52370114,88.42,88.391,0.5]
[1773159751760,11.30978635,88.419,88.392,11.31324101]
[1773159751974,11.30978635,88.419,88.392,11.81324101]
[1773159752173,10.52370114,88.42,88.393,0.5]
[1773159752687,10.52370114,88.41,88.37,38.81365405]
[1773159752867,10.52370114,88.41,88.371,0.5]
[1773159753864,11.31106561,88.409,88.372,11.31580138]
[1773159754064,11.31106561,88.409,88.373,0.5]
[1773159754462,28.26983509,88.434,88.391,0.5]
[1773159754661,45.20645338,88.483,88.401,0.5]
[1773159754662,10.52370114,88.43,88.401,0.5]
[1773159754864,11.30722871,88.439,88.401,0.5]
[1773159755070,10.52370114,88.43,88.401,0.5]
[1773159755273,10.52370114,88.41,88.373,0.5]
[1773159755582,10.52370114,88.4,88.373,0.5]
[1773159756374,10.52370114,88.4,88.374,11.31554529]
[1773159756768,10.52370114,88.39,88.364,11.31682585]
[1773159757386,10.52370114,88.38,88.353,0.5]
[1773159757577,10.52370114,88.37,88.342,0.5]
[1773159757776,10.52370114,88.39,88.351,0.5]
[1773159757980,10.52370114,88.38,88.351,0.5]
[1773159758370,39.59320806,88.399,88.351,0.5]
[1773159758570,11.31490512,88.379,88.353,0.5]
[1773159759084,10.52370114,88.37,88.34,10.52370114]
[1773159759274,11.31490512,88.379,88.344,0.5]
[1773159760387,10.52370114,88.37,88.344,0.5]
[1773159760584,21.8397801,88.37,88.345,11.31925972]
[1773159760896,10.52370114,88.38,88.351,0.5]
[1773159761189,10.52370114,88.37,88.351,0.5]
[1773159761372,10.52370114,88.38,88.351,0.5]
[1773159762068,10.52370114,88.39,88.351,0.5]
[1773159762492,10.52370114,88.42,88.381,0.5]
[1773159762796,10.52370114,88.44,88.383,0.5]
[1773159762973,10.52370114,88.41,88.383,0.5]
[1773159764581,11.31362499,88.389,88.357,0.5]
[1773159764784,11.31362499,88.389,88.359,0.5]
[1773159764968,10.52370114,88.4,88.371,0.5]
[1773159765173,10.52370114,88.41,88.371,0.5]
[1773159766389,10.52370114,88.42,88.381,0.5]
[1773159766573,10.52370114,88.41,88.381,0.5]
[1773159767880,11.31106561,88.409,88.382,11.81452105]
[1773159768089,11.31106561,88.409,88.382,0.5]
[1773159768590,39.58872964,88.409,88.382,0.5]
[1773159768795,11.31106561,88.409,88.382,11.81452105]
[1773159768977,11.31106561,88.409,88.383,0.5]
[1773159769887,11.31106561,88.409,88.384,11.31426502]
[1773159770090,10.52370114,88.43,88.391,0.5]
[1773159770298,10.52370114,88.43,88.401,0.5]
[1773159770593,28.26788633,88.44,88.401,0.5]
[1773159770594,38.79158747,88.44,88.401,0.5]
[1773159770977,11.30620597,88.447,88.411,0.5]
[1773159771177,10.52370114,88.43,88.397,0.5]
[1773159772082,11.30850739,88.429,88.398,11.81247313]
[1773159772377,11.30850739,88.429,88.401,0.5]
[1773159772897,28.26557455,88.447,88.401,0.5]
[1773159773197,11.30495004,88.457,88.401,0.5]
[1773159773378,11.30543904,88.453,88.401,0.5]
[1773159773575,5.90339856,88.488,88.402,0.5]
[1773159773798,10.52710641,88.48,88.402,0.5]
[1773159773986,11.30211688,88.479,88.414,0.5]
[1773159774192,10.52710641,88.47,88.414,0.5]
[1773159774386,11.30211688,88.479,88.414,0.5]
[1773159774976,10.52710641,88.47,88.414,0.5]
[1773159775303,10.52710641,88.46,88.414,0.5]
[1773159775803,39.55740909,88.479,88.414,0.5]
[1773159775804,10.52710641,88.45,88.414,0.5]
[1773159775982,11.30467222,88.459,88.415,11.31029802]
[1773159776182,45.20020437,88.496,88.415,11.31029802]
[1773159776183,11.3033944,88.469,88.416,0.5]
[1773159776383,10.52710641,88.48,88.416,0.5]
[1773159776602,10.52710641,88.49,88.416,0.5]
[1773159777105,10.52710641,88.48,88.416,0.5]
[1773159777898,39.54846946,88.499,88.416,0.5]
[1773159777899,10.52710641,88.47,88.416,0.5]
[1773159778099,10.52710641,88.48,88.418,0.5]
[1773159778885,10.52710641,88.47,88.418,0.5]
[1773159780196,10.52710641,88.46,88.419,11.30978635]
[1773159780380,39.56188042,88.469,88.399,11.81225848]
[1773159780381,10.52710641,88.43,88.399,11.81225848]
[1773159780585,10.52710641,88.43,88.4,0.5]
[1773159780783,10.52710641,88.45,88.4,0.5]
[1773159781702,10.52710641,88.45,88.402,0.5]
[1773159781892,10.52710641,88.46,88.404,0.5]
[1773159782086,10.52710641,88.46,88.406,0.5]
[1773159782288,11.30467222,88.459,88.409,0.5]
[1773159782507,11.30398824,88.465,88.411,0.5]
[1773159782807,11.3033212,88.47,88.413,0.5]
[1773159782986,10.52710641,88.48,88.415,0.5]
[1773159783188,10.52710641,88.48,88.408,141.38991944]
[1773159783189,10.52710641,88.46,88.417,0.5]
[1773159783492,28.25206003,88.49,88.417,0.5]
[1773159783692,28.25206003,88.49,88.408,39.58917744]
[1773159783693,10.52710641,88.48,88.419,0.5]
[1773159783990,10.52710641,88.48,88.421,0.5]
[1773159784197,28.25206003,88.49,88.423,0.5]
[1773159784198,10.52710641,88.47,88.423,0.5]
[1773159784503,10.52710641,88.44,88.398,0.5]
[1773159784890,750.235942,88.413,88.398,0.5]
[1773159785109,681.81506812,88.413,88.399,0.49107097]
[1773159785285,585.89421912,88.413,88.399,0.49107097]
[1773159785487,396.86986303,88.413,88.399,0.49107097]